bitfinex-derivatives/quotes_SOLF0:USTF0_20260129
["timestamp","ask_amount","ask_price","bid_price","bid_amount"]
[1769669263420,3.93851704,123.45,123.41,2.52565733]
[1769669265914,3.93851704,123.45,123.4,2.52565733]
[1769669268732,11.24021704,123.45,123.4,2.52565733]
[1769669271233,11.23961704,123.46,123.41,2.52565733]
[1769669272235,3.93851704,123.44,123.4,2.52565733]
[1769669272428,3.93851704,123.44,123.39,2.52565733]
[1769669275835,3.93851704,123.44,123.39,9.83075733]
[1769669284337,3.93851704,123.45,123.4,9.83025733]
[1769669285236,3.93851704,123.45,123.4,2.52565733]
[1769669285632,3.93851704,123.45,123.39,9.83085733]
[1769669287232,3.93851704,123.45,123.4,9.83015733]
[1769669288335,3.93851704,123.47,123.41,9.82945733]
[1769669288540,3.93851704,123.47,123.42,2.52565733]
[1769669290130,3.93851704,123.47,123.41,9.82945733]
[1769669291541,3.93851704,123.47,123.41,9.82763825]
[1769669294434,3.93851704,123.47,123.42,2.52383825]
[1769669298447,3.93851704,123.47,123.42,9.82723825]
[1769669299643,3.93851704,123.47,123.43,7.3027]
[1769669299848,3.93851704,123.49,123.44,2.52383825]
[1769669301351,3.93851704,123.51,123.46,2.52383825]
[1769669305849,11.23661704,123.51,123.46,2.52383825]
[1769669307252,3.93851704,123.51,123.46,2.52383825]
[1769669307554,3.93851704,123.51,123.47,2.52383825]
[1769669307752,3.93851704,123.53,123.48,2.52383825]
[1769669312353,3.93851704,123.53,123.47,9.82423825]
[1769669315456,3.93851704,123.52,123.47,2.52383825]
[1769669315655,3.93851704,123.52,123.46,9.82483825]
[1769669316857,3.93851704,123.52,123.47,7.3004]
[1769669317554,3.93851704,123.52,123.46,7.301]
[1769669317757,3.93851704,123.51,123.44,2.52383825]
[1769669318658,3.93851704,123.51,123.45,2.52383825]
[1769669319455,3.93851704,123.51,123.45,9.82543825]
[1769669327860,11.23681704,123.51,123.45,9.82543825]
[1769669328063,3.93851704,123.5,123.45,2.52383825]
[1769669330559,3.93851704,123.5,123.44,9.82553825]
[1769669331164,3.93851704,123.5,123.45,2.52383825]
[1769669333677,3.93851704,123.5,123.44,9.82553825]
[1769669341174,3.93851704,123.5,123.45,9.82533825]
[1769669341375,3.93851704,123.51,123.46,2.52383825]
[1769669342873,3.93851704,123.51,123.45,9.82533825]
[1769669343080,3.93851704,123.51,123.47,2.52383825]
[1769669343271,3.93851704,123.51,123.46,9.82483825]
[1769669344372,3.93851704,123.51,123.45,9.82553825]
[1769669346181,3.93851704,123.51,123.45,7.3017]
[1769669351785,3.93851704,123.5,123.45,7.3017]
[1769669358094,3.93851704,123.5,123.44,7.3022]
[1769669358393,3.93851704,123.49,123.44,7.3022]
[1769669358594,3.93851704,123.48,123.44,7.3022]
[1769669368200,3.93851704,123.48,123.42,2.52253063]
[1769669369304,3.93851704,123.48,123.43,7.3028]
[1769669373817,3.93851704,123.48,123.43,9.82533063]
[1769669374209,3.93851704,123.47,123.42,7.3034]
[1769669374415,3.93851704,123.47,123.41,2.52253063]
[1769669374816,11.23921704,123.47,123.41,2.52253063]
[1769669375518,11.23921704,123.47,123.4,325.96253063]
[1769669375912,11.23921704,123.47,123.41,7.3039]
[1769669376215,11.23921704,123.47,123.41,9.82643063]
[1769669378621,11.23921704,123.47,123.41,7.3039]
[1769669378815,11.23921704,123.47,123.41,9.82643063]
[1769669380717,11.23801704,123.49,123.43,2.52253063]
[1769669381117,3.93851704,123.48,123.43,2.52253063]
[1769669382321,3.93851704,123.48,123.43,9.82523063]
[1769669385226,3.93851704,123.48,123.44,7.3021]
[1769669386723,3.93851704,123.48,123.44,9.82463063]
[1769669390536,10.07773073,123.51,123.46,2.52253063]
[1769669390537,1e-07,123.51,123.46,2.52253063]
[1769669390721,3.93851704,123.55,123.49,2.52253063]
[1769669390920,3.93851704,123.55,123.51,2.52253063]
[1769669391326,3.93851704,123.55,123.52,2.52253063]
[1769669391527,3.93851704,123.59,123.52,2.52253063]
[1769669392433,3.93851704,123.57,123.52,2.52253063]
[1769669397842,3.93851704,123.57,123.53,2.52253063]
[1769669398030,3.93851704,123.57,123.51,7.2981]
[1769669398031,3.93851704,123.57,123.54,2.52253063]
[1769669398433,3.93851704,123.57,123.53,2.52253063]
[1769669399240,3.93851704,123.57,123.54,2.52253063]
[1769669400328,3.93851704,123.57,123.53,2.52253063]
[1769669400642,3.93851704,123.57,123.54,2.52253063]
[1769669401142,6.46104767,123.59,123.52,9.81983063]
[1769669401343,3.93851704,123.59,123.53,2.52253063]
[1769669402832,3.93851704,123.58,123.52,9.81983063]
[1769669403942,6.46104767,123.58,123.51,2.52253063]
[1769669404741,2.52253063,123.57,123.51,2.52253063]
[1769669405735,6.46104767,123.57,123.5,2.52253063]
[1769669406039,2.52253063,123.55,123.47,436.9202]
[1769669406244,2.52253063,123.55,123.49,2.52253063]
[1769669407446,2.52253063,123.55,123.49,9.82173063]
[1769669409345,6.46104767,123.56,123.49,9.82173063]
[1769669409653,6.46104767,123.56,123.5,2.52253063]
[1769669410450,6.46104767,123.56,123.5,9.82113063]
[1769669410645,11.23301704,123.58,123.5,2.52253063]
[1769669410946,2.52253063,123.57,123.51,2.52253063]
[1769669411148,13.75554767,123.58,123.51,2.52253063]
[1769669412448,13.75554767,123.58,123.51,9.82063063]
[1769669413643,13.75261941,123.58,123.51,9.81770237]
[1769669417644,3.93851704,123.57,123.51,9.81770237]
[1769669418152,6.45811941,123.57,123.51,7.2981]
[1769669418351,6.45811941,123.57,123.47,436.9202]
[1769669418352,2.51960237,123.55,123.49,2.51960237]
[1769669418744,6.45811941,123.55,123.48,2.51960237]
[1769669419650,6.45811941,123.55,123.49,7.2992]
[1769669420956,2.51960237,123.54,123.49,7.2992]
[1769669425161,2.51960237,123.53,123.47,330.6599]
[1769669425363,6.45811941,123.53,123.47,330.6599]
[1769669433569,6.45811941,123.53,123.47,333.17950237]
[1769669436660,3.93851704,123.52,123.47,330.6599]
[1769669436864,6.45811941,123.51,123.44,2.51960237]
[1769669437059,2.51960237,123.5,123.44,323.34]
[1769669438371,2.51960237,123.5,123.46,7.3011]
[1769669446886,2.51960237,123.52,123.47,7.3004]
[1769669447377,11.23541704,123.53,123.47,9.82000237]
[1769669447572,3.93851704,123.52,123.47,9.82000237]
[1769669450487,3.93851704,123.52,123.48,2.51960237]
[1769669451188,3.93851704,123.52,123.47,9.82000237]
[1769669471800,3.93851704,123.54,123.48,9.81940237]
[1769669473695,3.93851704,123.54,123.48,9.82085478]
[1769669478409,3.93851704,123.54,123.49,2.52105478]
[1769669481413,3.93851704,123.54,123.49,9.82015478]
[1769669496127,6.45957182,123.54,123.47,7.3]
[1769669496328,3.93851704,123.53,123.47,9.82105478]
[1769669497632,6.45957182,123.53,123.47,9.82105478]
[1769669498428,3.93851704,123.52,123.46,2.52105478]
[1769669498626,3.93851704,123.52,123.45,7.3011]
[1769669498627,6.45957182,123.52,123.45,9.82215478]
[1769669500527,13.75727182,123.52,123.45,9.82215478]
[1769669500925,11.23621704,123.52,123.45,9.82215478]
[1769669501126,11.23621704,123.52,123.46,2.52105478]
[1769669505528,13.75727182,123.52,123.46,2.52105478]
[1769669508436,13.75727182,123.52,123.45,9.82215478]
[1769669509234,3.93851704,123.51,123.45,9.82215478]
[1769669511137,3.93851704,123.51,123.46,2.52105478]
[1769669512340,3.93851704,123.51,123.47,2.52105478]
[1769669512728,3.93851704,123.51,123.46,7.3008]
[1769669512936,3.93851704,123.51,123.47,2.52105478]
[1769669516851,3.93851704,123.51,123.46,9.82185478]
[1769669519250,3.93851704,123.53,123.48,2.52105478]
[1769669520752,3.93851704,123.53,123.49,2.52105478]
[1769669522256,11.23541704,123.53,123.48,2.52105478]
[1769669522443,11.23541704,123.53,123.47,9.82145478]
[1769669523054,3.93851704,123.52,123.47,9.82145478]
[1769669523349,3.93851704,123.51,123.47,2.52105478]
[1769669523549,3.93851704,123.51,123.45,7.3012]
[1769669523751,3.93851704,123.51,123.44,323.42]
[1769669523752,3.93851704,123.5,123.44,323.42]
[1769669523958,6.45957182,123.5,123.44,323.42]
[1769669524252,3.93851704,123.49,123.44,323.42]
[1769669524450,3.93851704,123.49,123.43,2.52105478]
[1769669525355,3.93851704,123.49,123.43,9.82375478]
[1769669530060,3.93851704,123.48,123.41,2.52105478]
[1769669531455,11.23841704,123.48,123.41,9.82495478]
[1769669531759,11.23841704,123.48,123.42,2.52105478]
[1769669531962,11.23841704,123.48,123.42,9.82445478]
[1769669532356,11.23841704,123.48,123.43,2.52105478]
[1769669533064,11.23841704,123.48,123.42,9.82445478]
[1769669534465,3.93851704,123.48,123.42,9.82445478]
[1769669535265,3.93851704,123.48,123.43,2.52105478]
[1769669535668,3.93851704,123.48,123.43,2.52351853]
[1769669537572,3.93851704,123.48,123.43,9.82631853]
[1769669541272,3.93851704,123.48,123.44,2.52351853]
[1769669542385,3.93851704,123.5,123.44,9.82571853]
[1769669544779,3.93851704,123.49,123.44,9.82571853]
[1769669545079,3.93851704,123.49,123.44,7.3022]
[1769669550181,3.93851704,123.49,123.44,9.82571853]
[1769669551170,3.93851704,123.49,123.44,7.3022]
[1769669552378,11.23781704,123.49,123.43,2.52351853]
[1769669552584,3.93851704,123.48,123.43,2.52351853]
[1769669553984,3.93851704,123.48,123.41,2.52351853]
[1769669553985,3.93851704,123.47,123.41,2.52351853]
[1769669554475,3.93851704,123.46,123.41,7.304]
[1769669554683,3.93851704,123.46,123.4,2.52351853]
[1769669556384,3.93851704,123.46,123.39,323.46]
[1769669556590,3.93851704,123.43,123.37,2.52351853]
[1769669557287,3.93851704,123.43,123.38,9.82871853]
[1769669558878,3.93851704,123.43,123.37,2.52351853]
[1769669560387,3.93851704,123.43,123.37,9.82991853]
[1769669564790,3.93851704,123.43,123.38,2.52351853]
[1769669569493,3.93851704,123.43,123.37,9.82991853]
[1769669569893,3.93851704,123.42,123.37,7.3064]
[1769669572498,3.93851704,123.42,123.37,9.82991853]
[1769669573800,3.93851704,123.42,123.38,7.3057]
[1769669574201,3.93851704,123.42,123.38,9.82921853]
[1769669577300,11.24081704,123.44,123.38,9.82921853]
[1769669577801,3.93851704,123.43,123.38,9.82921853]
[1769669580399,3.93851704,123.43,123.39,2.52351853]
[1769669581401,3.93851704,123.45,123.39,9.82861853]
[1769669581594,3.93851704,123.45,123.4,2.52351853]
[1769669584797,3.93851704,123.47,123.42,2.52351853]
[1769669587292,3.93851704,123.47,123.42,9.82691853]
[1769669587505,3.93851704,123.47,123.43,2.52351853]
[1769669587704,3.93851704,123.49,123.44,2.52351853]
[1769669593504,3.93851704,123.49,123.45,2.52351853]
[1769669593710,3.93851704,123.49,123.46,2.52351853]
[1769669597810,3.93851704,123.49,123.46,2.52221346]
[1769669598016,3.93851704,123.51,123.46,2.52221346]
[1769669598215,3.93851704,123.51,123.47,2.52221346]
[1769669599308,11.23661704,123.51,123.47,2.52221346]
[1769669599902,3.93851704,123.49,123.46,2.52221346]
[1769669601013,3.93851704,123.49,123.45,2.52221346]
[1769669601208,3.93851704,123.49,123.44,2.52221346]
[1769669603215,3.93851704,123.49,123.43,9.82501346]
[1769669604216,3.93851704,123.49,123.43,7.3028]
[1769669604515,3.93851704,123.49,123.44,2.52221346]
[1769669618523,3.93851704,123.48,123.41,7.3035]
[1769669618720,3.93851704,123.47,123.41,9.82571346]
[1769669619922,6.4607305,123.46,123.4,7.3046]
[1769669620225,3.93851704,123.45,123.4,7.3046]
[1769669620732,6.4607305,123.44,123.38,7.3052]
[1769669623235,3.93851704,123.44,123.38,9.82741346]
[1769669626937,3.93851704,123.44,123.38,7.3052]
[1769669627124,3.93851704,123.44,123.38,9.82741346]
[1769669633743,3.93851704,123.44,123.39,2.52221346]
[1769669636142,3.93851704,123.44,123.39,9.82681346]
[1769669636445,3.93851704,123.44,123.4,2.52221346]
[1769669637343,3.93851704,123.44,123.4,9.82671346]
[1769669638245,3.93851704,123.44,123.4,7.3045]
[1769669642845,3.93851704,123.44,123.4,9.82671346]
[1769669643248,3.93851704,123.44,123.4,7.3045]
[1769669643640,3.93851704,123.46,123.41,2.52221346]
[1769669643847,3.93851704,123.48,123.42,2.52221346]
[1769669644144,3.93851704,123.48,123.43,2.52221346]
[1769669644338,3.93851704,123.48,123.43,9.82491346]
[1769669648846,3.93851704,123.48,123.44,2.52221346]
[1769669654754,3.93851704,123.48,123.43,9.82491346]
[1769669657560,3.93851704,123.48,123.43,9.82608719]
[1769669661259,3.93851704,123.48,123.44,2.52338719]
[1769669664354,3.93851704,123.48,123.43,9.82608719]
[1769669666864,3.93851704,123.48,123.43,2.52338719]
[1769669669866,3.93851704,123.48,123.44,2.52338719]
[1769669676175,3.93851704,123.48,123.43,9.82598719]
[1769669678077,3.93851704,123.48,123.44,7.3021]
[1769669678580,3.93851704,123.48,123.44,9.82548719]
[1769669682680,3.93851704,123.48,123.44,7.3021]
[1769669688788,3.93851704,123.48,123.44,9.82548719]
[1769669689581,14.86470736,123.5,123.44,9.82548719]
[1769669689582,18.8032244,123.5,123.44,9.82548719]
[1769669689982,3.93851704,123.49,123.44,9.82548719]
[1769669695689,3.93851704,123.49,123.45,7.3016]
[1769669703797,3.93851704,123.49,123.44,7.3022]
[1769669704091,3.93851704,123.49,123.42,2.52338719]
[1769669704092,11.5045244,123.49,123.42,2.52338719]
[1769669704296,3.93851704,123.49,123.43,2.52338719]
[1769669704694,3.93851704,123.49,123.4,113.6254]
[1769669704894,3.93851704,123.49,123.43,2.52338719]
[1769669705295,3.93851704,123.49,123.43,9.82618719]
[1769669707003,3.93851704,123.49,123.44,9.82558719]
[1769669707299,3.93851704,123.49,123.45,2.52338719]
[1769669707500,3.93851704,123.49,123.44,9.82558719]
[1769669710194,3.93851704,123.49,123.45,2.52338719]
[1769669715306,3.93851704,123.49,123.46,2.52338719]
[1769669716108,11.5045244,123.53,123.48,2.52338719]
[1769669716611,11.23551704,123.53,123.49,2.52338719]
[1769669719502,11.23551704,123.53,123.48,2.52338719]
[1769669719707,11.23551704,123.53,123.48,2.52128791]
[1769669719914,3.93851704,123.53,123.49,2.52128791]
[1769669722324,3.93851704,123.53,123.47,7.3002]
[1769669722325,3.93851704,123.52,123.47,7.3002]
[1769669722512,3.93851704,123.52,123.48,2.52128791]
[1769669734126,3.93851704,123.54,123.49,2.52128791]
[1769669735424,3.93851704,123.53,123.49,2.52128791]
[1769669737933,3.93851704,123.53,123.5,2.52128791]
[1769669738827,3.93851704,123.55,123.51,2.52128791]
[1769669739229,3.93851704,123.55,123.5,2.52128791]
[1769669743133,3.93851704,123.55,123.49,9.82038791]
[1769669743730,3.93851704,123.55,123.5,2.52128791]
[1769669745426,3.93851704,123.55,123.49,9.82038791]
[1769669745632,3.93851704,123.55,123.48,2.52128791]
[1769669745633,3.93851704,123.54,123.48,2.52128791]
[1769669746133,3.93851704,123.54,123.48,9.82108791]
[1769669746634,3.93851704,123.53,123.48,7.2998]
[1769669747433,3.93851704,123.53,123.47,2.52128791]
[1769669747628,3.93851704,123.53,123.46,2.52128791]
[1769669747827,3.93851704,123.52,123.46,2.52128791]
[1769669749033,3.93851704,123.52,123.47,7.3003]
[1769669753639,3.93851704,123.54,123.47,9.82158791]
[1769669755134,3.93851704,123.52,123.47,2.52128791]
[1769669755728,3.93851704,123.52,123.45,7.3013]
[1769669755932,3.93851704,123.52,123.46,2.52128791]
[1769669758745,11.23601704,123.52,123.46,2.52128791]
[1769669760047,3.93851704,123.5,123.44,9.82348791]
[1769669760754,3.93851704,123.5,123.45,7.3016]
[1769669771158,3.93851704,123.5,123.45,9.82288791]
[1769669773159,3.93851704,123.5,123.45,7.3016]
[1769669773348,3.93851704,123.5,123.45,9.82288791]
[1769669779767,13.75730495,123.52,123.46,2.52128791]
[1769669780365,11.23601704,123.52,123.46,2.52128791]
[1769669781166,3.93851704,123.51,123.46,2.52128791]
[1769669781666,3.93851704,123.51,123.46,2.52188006]
[1769669783967,3.93851704,123.51,123.47,2.52188006]
[1769669785671,3.93851704,123.51,123.46,9.82248006]
[1769669785967,11.23561704,123.53,123.48,2.52188006]
[1769669786568,3.93851704,123.52,123.48,2.52188006]
[1769669790465,18.81517398,123.55,123.49,2.52188006]
[1769669790668,3.93851704,123.55,123.51,2.52188006]
[1769669791269,3.93851704,123.55,123.5,2.52188006]
[1769669792273,3.93851704,123.55,123.51,2.52188006]
[1769669793865,3.93851704,123.55,123.52,2.52188006]
[1769669796685,3.93851704,123.55,123.53,2.52188006]
[1769669796983,3.93851704,123.57,123.53,2.52188006]
[1769669797283,3.93851704,123.57,123.54,2.52188006]
[1769669797488,3.93851704,123.57,123.55,2.52188006]
[1769669797676,3.93851704,123.57,123.54,2.52188006]
[1769669800481,7.2934,123.59,123.52,7.2975]
[1769669800482,3.93851704,123.59,123.55,2.52188006]
[1769669801281,3.93851704,123.59,123.54,2.52188006]
[1769669802783,3.93851704,123.59,123.55,2.52188006]
[1769669811596,3.93851704,123.59,123.57,2.52188006]
[1769669813193,3.93851704,123.59,123.56,2.52188006]
[1769669814188,3.93851704,123.59,123.55,2.52188006]
[1769669814891,3.93851704,123.59,123.57,2.52188006]
[1769669816297,3.93851704,123.59,123.55,2.52188006]
[1769669819592,9.81368006,123.62,123.55,2.52188006]
[1769669819801,3.93851704,123.61,123.55,2.52188006]
[1769669820701,3.93851704,123.61,123.56,2.52188006]
[1769669820896,3.93851704,123.61,123.57,2.52188006]
[1769669823399,3.93851704,123.61,123.56,9.81698006]
[1769669825607,3.93851704,123.63,123.57,9.81638006]
[1769669825798,3.93851704,123.63,123.58,2.52188006]
[1769669827910,3.93851704,123.63,123.57,9.81638006]
[1769669829002,3.93851704,123.63,123.58,2.52188006]
[1769669831314,3.93851704,123.63,123.57,9.81638006]
[1769669835603,3.93851704,123.63,123.57,7.2945]
[1769669835604,6.4603971,123.63,123.57,7.2945]
[1769669835808,3.93851704,123.62,123.57,7.2945]
[1769669840220,3.93851704,123.62,123.57,9.81638006]
[1769669840617,13.7508971,123.64,123.57,9.81638006]
[1769669840819,6.4603971,123.64,123.58,9.81568006]
[1769669841019,3.93851704,123.64,123.58,9.81568006]
[1769669841624,3.93851704,123.64,123.59,7.2932]
[1769669841811,3.93851704,123.64,123.59,9.80974299]
[1769669842220,3.93851704,123.64,123.59,7.2932]
[1769669843618,3.93851704,123.64,123.59,9.80974299]
[1769669843920,3.93851704,123.64,123.59,7.2932]
[1769669845121,2.51654299,123.65,123.59,7.2932]
[1769669845323,6.45506003,123.65,123.59,7.2932]
[1769669847419,3.93851704,123.65,123.6,7.2928]
[1769669847719,3.93851704,123.67,123.61,2.51654299]
[1769669850819,6.45506003,123.67,123.6,9.80934299]
[1769669851027,3.93851704,123.66,123.6,9.80934299]
[1769669853324,6.45506003,123.66,123.6,9.80934299]
[1769669853924,3.93851704,123.66,123.6,9.80934299]
[1769669859930,3.93851704,123.66,123.6,7.2928]
[1769669860126,6.45506003,123.66,123.6,9.80934299]
[1769669861324,3.93851704,123.66,123.6,9.80934299]
[1769669861726,3.93851704,123.66,123.61,9.80864299]
[1769669862027,3.93851704,123.68,123.62,2.51654299]
[1769669862823,11.22671704,123.68,123.62,2.51654299]
[1769669863031,11.22671704,123.68,123.63,2.51654299]
[1769669865727,3.93851704,123.68,123.64,2.51654299]
[1769669871127,11.22581704,123.7,123.65,2.51654299]
[1769669871327,3.93851704,123.7,123.66,2.51654299]
[1769669872934,3.93851704,123.7,123.65,2.51654299]
[1769669873135,3.93851704,123.7,123.66,2.51654299]
[1769669874422,3.93851704,123.7,123.65,2.51654299]
[1769669875232,3.93851704,123.7,123.66,2.51654299]
[1769669875432,3.93851704,123.7,123.65,2.51654299]
[1769669884741,3.93851704,123.7,123.64,9.80694299]
[1769669889246,3.93851704,123.7,123.65,2.51654299]
[1769669891246,3.93851704,123.7,123.64,9.80694299]
[1769669891848,3.93851704,123.68,123.63,2.51654299]
[1769669892047,3.93851704,123.67,123.62,7.2911]
[1769669893344,6.45506003,123.67,123.62,7.2911]
[1769669893642,6.45506003,123.66,123.61,7.2922]
[1769669894853,2.51654299,123.65,123.61,7.2922]
[1769669896751,2.51654299,123.65,123.62,7.2915]
[1769669897254,2.51654299,123.64,123.62,7.2915]
[1769669899853,2.51654299,123.64,123.59,322.94]
[1769669901243,2.51654299,123.65,123.61,7.2921]
[1769669901555,2.51644224,123.65,123.61,7.2921]
[1769669904054,6.45495928,123.66,123.61,7.2921]
[1769669910457,2.51644224,123.67,123.62,7.2914]
[1769669910959,2.51644224,123.66,123.62,7.2914]
[1769669911459,3.93851704,123.67,123.62,7.2914]
[1769669914564,3.93851704,123.67,123.63,7.2907]
[1769669914755,3.93851704,123.67,123.63,9.80714224]
[1769669915463,3.93851704,123.69,123.64,9.80664224]
[1769669917962,3.93851704,123.69,123.65,2.51644224]
[1769669919968,3.93851704,123.69,123.64,9.80664224]
[1769669921066,3.93851704,123.69,123.64,2.51644224]
[1769669921266,3.93851704,123.69,123.63,9.80724224]
[1769669922469,11.22601704,123.69,123.63,9.80724224]
[1769669924369,11.22601704,123.69,123.64,2.51644224]
[1769669924666,3.93851704,123.69,123.64,2.51644224]
[1769669926972,3.93851704,123.69,123.63,7.2908]
[1769669927173,3.93851704,123.69,123.64,2.51644224]
[1769669931376,3.93851704,123.69,123.63,9.80724224]
[1769669942889,11.22601704,123.69,123.63,9.80724224]
[1769669944991,3.93851704,123.67,123.61,7.2919]
[1769669946186,3.93851704,123.67,123.61,9.80834224]
[1769669948192,3.93851704,123.67,123.63,2.51644224]
[1769669948692,3.93851704,123.67,123.62,2.51644224]
[1769669950697,3.93851704,123.67,123.62,9.80784224]
[1769669951890,3.93851704,123.7,123.64,2.51644224]
[1769669952090,3.93851704,123.7,123.65,2.51644224]
[1769669956004,3.93851704,123.7,123.64,7.2904]
[1769669956005,3.93851704,123.7,123.66,2.51644224]
[1769669956401,3.93851704,123.7,123.67,2.51644224]
[1769669956601,3.93851704,123.72,123.67,2.51644224]
[1769669960802,3.93851704,123.72,123.68,2.51644224]
[1769669961212,3.93851704,123.72,123.67,2.51644224]
[1769669963711,3.93851704,123.72,123.67,2.51324659]
[1769669992740,3.93851704,123.72,123.68,2.51324659]
[1769669994240,3.93851704,123.72,123.67,2.51324659]
[1769669994739,3.93851704,123.72,123.66,9.80244659]
[1769669996050,3.93851704,123.72,123.67,2.51324659]
[1769669997854,3.93851704,123.72,123.66,9.80244659]
[1769670001356,9.79894659,123.73,123.66,9.80244659]
[1769670001654,13.73746363,123.73,123.66,9.80244659]
[1769670002851,3.93851704,123.72,123.66,9.80244659]
[1769670004552,3.93851704,123.72,123.67,7.2886]
[1769670009857,6.45176363,123.72,123.67,7.2886]
[1769670010060,2.51324659,123.7,123.65,7.2894]
[1769670010463,6.45176363,123.71,123.65,7.2894]
[1769670013766,6.45176363,123.71,123.66,7.2892]
[1769670016870,3.93851704,123.71,123.66,7.2892]
[1769670018775,3.93851704,123.71,123.64,2.51324659]
[1769670018776,3.93851704,123.71,123.67,7.2887]
[1769670022075,6.45176363,123.71,123.67,7.2887]
[1769670023582,6.45255714,123.71,123.67,7.2887]
[1769670026278,3.93851704,123.71,123.67,7.2887]
[1769670028182,6.45255714,123.71,123.67,7.2887]
[1769670028581,3.93851704,123.71,123.67,7.2887]
[1769670028874,13.73715714,123.74,123.67,9.8027401]
[1769670029479,21.29675014,123.74,123.67,9.8027401]
[1769670029679,3.93851704,123.73,123.67,9.8027401]
[1769670030982,3.93851704,123.73,123.68,7.288]
[1769670033185,3.93851704,123.73,123.68,9.8020401]
[1769670039699,3.93851704,123.73,123.68,7.288]
[1769670044092,2.5140401,123.74,123.67,2.5140401]
[1769670044293,3.93851704,123.75,123.69,9.8014401]
[1769670044486,3.93851704,123.76,123.7,2.5140401]
[1769670045092,3.93851704,123.76,123.7,9.8003401]
[1769670046096,3.93851704,123.76,123.67,113.377]
[1769670046097,3.93851704,123.76,123.71,9.8000401]
[1769670047401,3.93851704,123.76,123.71,7.286]
[1769670051710,6.45255714,123.76,123.71,7.286]
[1769670053508,2.5140401,123.76,123.71,7.286]
[1769670054915,6.45255714,123.77,123.71,7.286]
[1769670055712,3.93851704,123.77,123.71,7.286]
[1769670056611,3.93851704,123.77,123.71,9.8000401]
[1769670058919,3.93851704,123.77,123.71,7.286]
[1769670059418,3.93851704,123.77,123.7,9.8009401]
[1769670060520,3.93851704,123.76,123.7,9.8009401]
[1769670061118,3.93851704,123.75,123.69,7.2874]
[1769670061316,3.93851704,123.75,123.69,9.8014401]
[1769670062817,6.45255714,123.74,123.68,7.288]
[1769670063520,3.93851704,123.73,123.68,7.288]
[1769670075133,3.93851704,123.73,123.68,9.8020401]
[1769670077532,3.93851704,123.73,123.68,7.288]
[1769670085640,3.93851704,123.73,123.68,9.80101964]
[1769670086241,3.93851704,123.73,123.69,2.51301964]
[1769670089346,3.93851704,123.73,123.69,9.80041964]
[1769670089534,3.93851704,123.73,123.7,2.51301964]
[1769670099157,3.93851704,123.73,123.69,7.2874]
[1769670099454,3.93851704,123.73,123.69,9.80041964]
[1769670101358,3.93851704,123.73,123.69,7.2874]
[1769670119972,3.93851704,123.73,123.69,9.80041964]
[1769670122774,7.2841,123.75,123.7,2.51301964]
[1769670122977,11.22261704,123.75,123.7,2.51301964]
[1769670123973,3.93851704,123.74,123.7,2.51301964]
[1769670134790,3.93851704,123.76,123.7,2.51301964]
[1769670134987,3.93851704,123.76,123.72,2.51301964]
[1769670139799,3.93851704,123.76,123.71,9.79931964]
[1769670141803,3.93851704,123.75,123.69,7.287]
[1769670144504,3.93851704,123.75,123.69,9.80001964]
[1769670147608,3.93851704,123.75,123.69,9.79953138]
[1769670148302,11.22251704,123.75,123.69,9.79953138]
[1769670149806,3.93851704,123.75,123.7,9.79933138]
[1769670150009,3.93851704,123.75,123.71,2.51253138]
[1769670150208,11.22161704,123.77,123.71,2.51253138]
[1769670150405,11.22161704,123.77,123.71,9.79873138]
[1769670150710,3.93851704,123.77,123.72,2.51253138]
[1769670151808,3.93851704,123.79,123.74,2.51253138]
[1769670153108,3.93851704,123.79,123.73,7.2851]
[1769670153310,3.93851704,123.79,123.73,9.79763138]
[1769670159717,3.93851704,123.79,123.74,2.51253138]
[1769670160720,3.93851704,123.79,123.75,2.51253138]
[1769670162720,3.93851704,123.79,123.74,2.51253138]
[1769670164921,3.93851704,123.79,123.73,7.2851]
[1769670165120,3.93851704,123.79,123.74,2.51253138]
[1769670169226,3.93851704,123.81,123.75,2.51253138]
[1769670170526,11.21901704,123.81,123.75,2.51253138]
[1769670170922,11.21901704,123.81,123.75,9.79643138]
[1769670175926,11.21901704,123.81,123.76,2.51253138]
[1769670176422,11.21901704,123.81,123.75,7.2839]
[1769670176423,13.73154842,123.81,123.75,9.79643138]
[1769670178030,11.21901704,123.81,123.75,9.79643138]
[1769670179021,11.21901704,123.81,123.75,2.51253138]
[1769670179334,3.93851704,123.8,123.75,2.51253138]
[1769670180225,3.93851704,123.8,123.74,2.51253138]
[1769670181231,3.93851704,123.79,123.74,2.51253138]
[1769670181431,3.93851704,123.79,123.73,9.79703138]
[1769670182928,3.93851704,123.79,123.74,7.2845]
[1769670189738,3.93851704,123.79,123.75,7.2839]
[1769670191937,6.45104842,123.79,123.75,7.2839]
[1769670192240,6.45104842,123.81,123.76,7.2833]
[1769670192430,3.93851704,123.81,123.76,9.79583138]
[1769670192626,3.93851704,123.83,123.77,2.51253138]
[1769670193240,2.51253138,123.84,123.77,2.51253138]
[1769670193440,15.44522362,123.85,123.78,2.51253138]
[1769670193740,12.93269224,123.85,123.79,2.51253138]